fUST/lending_fUST_20250709
["ID","MTS","AMOUNT","RATE_DAILY","PERIOD"]
[370505791,1752048654450,-460.0,0.00020273,2]
[370505792,1752048654460,-460.0,0.00020273,2]
[370505793,1752048654469,-460.0,0.00020273,2]
[370505794,1752048654478,-460.0,0.00020273,2]
[370505795,1752048654488,-460.0,0.00020273,2]
[370505796,1752048654497,-460.0,0.00020273,2]
[370505797,1752048654506,-460.0,0.00020273,2]
[370505798,1752048654516,-460.0,0.00020273,2]
[370505799,1752048654525,-460.0,0.00020273,2]
[370505800,1752048654534,-460.0,0.00020273,2]
[370505801,1752048654544,-460.0,0.00020273,2]
[370505802,1752048654553,-460.0,0.00020273,2]
[370505803,1752048654562,-460.0,0.00020273,2]
[370505804,1752048654572,-460.0,0.00020273,2]
[370505805,1752048654581,-460.0,0.00020273,2]
[370505806,1752048654591,-460.0,0.00020273,2]
[370505807,1752048654600,-460.0,0.00020273,2]
[370505808,1752048654609,-460.0,0.00020273,2]
[370505809,1752048654618,-460.0,0.00020273,2]
[370505810,1752048654627,-460.0,0.00020273,2]
[370505811,1752048654636,-460.0,0.00020273,2]
[370505812,1752048654645,-460.0,0.00020273,2]
[370505813,1752048654654,-460.5355882,0.00020273,2]
[370505814,1752048654663,-460.0,0.00020273,2]
[370505815,1752048654672,-460.0,0.00020273,2]
[370505816,1752048654682,-512.6,0.00020273,2]
[370505817,1752048654691,-574.22,0.00020273,2]
[370505818,1752048654700,-460.0,0.00020273,2]
[370505819,1752048654708,-460.0,0.00020273,2]
[370505820,1752048654718,-460.0,0.00020273,2]
[370505821,1752048654727,-460.0,0.00020273,2]
[370505822,1752048654735,-460.0,0.00020273,2]
[370505823,1752048654744,-460.0,0.00020273,2]
[370505824,1752048654753,-460.0,0.00020273,2]
[370505825,1752048654762,-556.7,0.00020273,2]
[370505826,1752048654772,-460.0,0.00020273,2]
[370505827,1752048654781,-565.17164476,0.00020273,2]
[370505828,1752048654790,-460.0,0.00020273,2]
[370505829,1752048654799,-276.51219468,0.00020273,2]
[370505830,1752048654809,-460.0,0.00020273,2]
[370505831,1752048654818,-460.0,0.00020273,2]
[370505832,1752048654828,-460.0,0.00020273,2]
[370505833,1752048654836,-460.0,0.00020273,2]
[370505834,1752048654845,-460.0,0.00020273,2]
[370505835,1752048654854,-460.0,0.00020273,2]
[370505836,1752048654864,-460.0,0.00020273,2]
[370505837,1752048654873,-460.0,0.00020273,2]
[370505838,1752048654882,-460.0,0.00020273,2]
[370505839,1752048654891,-460.0,0.00020273,2]
[370505840,1752048654901,-460.0,0.00020273,2]
[370505841,1752048654910,-460.0,0.00020273,2]
[370505842,1752048654919,-460.0,0.00020273,2]
[370505843,1752048654928,-460.0,0.00020273,2]
[370505844,1752048654938,-460.0,0.00020273,2]
[370505845,1752048654948,-460.0,0.00020273,2]
[370505846,1752048654957,-809.51,0.00020273,2]
[370505847,1752048654965,-460.0,0.00020273,2]
[370505848,1752048654974,-460.0,0.00020273,2]
[370505849,1752048654984,-460.0,0.00020273,2]
[370505850,1752048654993,-460.0,0.00020273,2]
[370505851,1752048655003,-3416.35,0.00020273,2]
[370505852,1752048655012,-460.0,0.00020273,2]
[370505853,1752048655022,-162.61600426,0.00020273,2]
[370505854,1752048655031,-460.0,0.00020273,2]
[370505855,1752048655041,-460.0,0.00020273,2]
[370505856,1752048655050,-460.0,0.00020273,2]
[370505857,1752048655059,-460.0,0.00020273,2]
[370505858,1752048655069,-460.0,0.00020273,2]
[370505859,1752048655078,-631.17,0.00020273,2]
[370505860,1752048655087,-566.78,0.00020273,2]
[370505861,1752048655096,-460.0,0.00020273,2]
[370505862,1752048655105,-460.0,0.00020273,2]
[370505863,1752048655115,-460.0,0.00020273,2]
[370505864,1752048655124,-922.45,0.00020273,2]
[370505865,1752048655133,-460.0,0.00020273,2]
[370505866,1752048655142,-246.76,0.00020273,2]
[370505867,1752048655152,-460.0,0.00020273,2]
[370505868,1752048655162,-460.0,0.00020273,2]
[370505869,1752048655171,-460.0,0.00020273,2]
[370505870,1752048655180,-562.50143048,0.00020273,2]
[370505871,1752048655189,-460.0,0.00020273,2]
[370505872,1752048655198,-460.0,0.00020273,2]
[370505873,1752048655208,-460.0,0.00020273,2]
[370505874,1752048655217,-460.0,0.00020273,2]
[370505875,1752048655227,-460.0,0.00020273,2]
[370505876,1752048655237,-461.03,0.00020273,2]
[370505877,1752048655246,-460.0,0.00020273,2]
[370505878,1752048655255,-1673.21,0.00020273,2]
[370505879,1752048655265,-548.37,0.00020273,2]
[370505880,1752048655275,-856.19,0.00020273,2]
[370505881,1752048655285,-460.0,0.00020273,2]
[370505882,1752048655294,-460.0,0.00020273,2]
[370505883,1752048655304,-575.07,0.00020273,2]
[370505884,1752048655313,-460.0,0.00020273,2]
[370505885,1752048655323,-460.0,0.00020273,2]
[370505886,1752048655333,-460.0,0.00020273,2]
[370505887,1752048655342,-1127.17,0.00020273,2]
[370505888,1752048655352,-1071.84,0.00020273,2]
[370505889,1752048655362,-460.0,0.00020273,2]
[370505890,1752048655378,-460.0,0.00020273,2]
[370505891,1752048655387,-460.0,0.00020273,2]
[370505892,1752048655397,-460.0,0.00020273,2]
[370505893,1752048655411,-500.0,0.00020273,2]
[370505894,1752048655421,-460.0,0.00020273,2]
[370505895,1752048655430,-460.0,0.00020273,2]
[370505896,1752048655439,-618.77,0.00020273,2]
[370505897,1752048655450,-460.0,0.00020273,2]
[370505898,1752048655459,-460.0,0.00020273,2]
[370505899,1752048655469,-460.0,0.00020273,2]
[370505900,1752048655478,-460.0,0.00020273,2]
[370505901,1752048655489,-460.0,0.00020273,2]
[370505902,1752048655499,-1153.26,0.00020273,2]
[370505903,1752048655508,-460.0,0.00020273,2]
[370505904,1752048655518,-460.0,0.00020273,2]
[370505905,1752048655527,-2655.94,0.00020273,2]
[370505906,1752048655537,-460.0,0.00020273,2]
[370505907,1752048655546,-277.72262577,0.00020273,2]
[370505908,1752048655556,-460.0,0.00020273,2]
[370505909,1752048655565,-460.0,0.00020273,2]
[370505910,1752048655575,-460.0,0.00020273,2]
[370505911,1752048655585,-460.0,0.00020273,2]
[370505912,1752048655593,-460.0,0.00020273,2]
[370505913,1752048655603,-460.0,0.00020273,2]
[370505914,1752048655612,-460.0,0.00020273,2]
[370505915,1752048655622,-460.0,0.00020273,2]
[370505916,1752048655631,-1730.49,0.00020273,2]
[370505917,1752048655641,-562.16,0.00020273,2]
[370505918,1752048655651,-460.0,0.00020273,2]
[370505919,1752048655660,-460.0,0.00020273,2]
[370505920,1752048655669,-896.8,0.00020273,2]
[370505921,1752048655679,-460.0,0.00020273,2]
[370505922,1752048655689,-460.0,0.00020273,2]
[370505923,1752048655699,-460.0,0.00020273,2]
[370505924,1752048655709,-460.0,0.00020273,2]
[370505925,1752048655718,-460.0,0.00020273,2]
[370505926,1752048655728,-167.6792753,0.00020273,2]
[370505927,1752048655738,-481.05,0.00020273,2]
[370505928,1752048655748,-3708.31,0.00020273,2]
[370505929,1752048655758,-460.0,0.00020273,2]
[370505930,1752048655767,-460.0,0.00020273,2]
[370505931,1752048655776,-748.7,0.00020273,2]
[370505932,1752048655786,-460.0,0.00020273,2]
[370505933,1752048655796,-460.0,0.00020273,2]
[370505934,1752048655806,-460.0,0.00020273,2]
[370505935,1752048655815,-1686.18,0.00020273,2]
[370505936,1752048655825,-460.0,0.00020273,2]
[370505937,1752048655835,-460.0,0.00020273,2]
[370505938,1752048655845,-460.0,0.00020273,2]
[370505939,1752048655855,-460.0,0.00020273,2]
[370505940,1752048655870,-460.0,0.00020273,2]
[370505941,1752048655881,-460.0,0.00020273,2]
[370505942,1752048655891,-460.0,0.00020273,2]
[370505943,1752048655901,-2583.43,0.00020273,2]
[370505944,1752048655910,-460.0,0.00020273,2]
[370505945,1752048655919,-460.0,0.00020273,2]
[370505946,1752048655929,-460.0,0.00020273,2]
[370505947,1752048655939,-460.0,0.00020273,2]
[370505948,1752048655948,-460.0,0.00020273,2]
[370505949,1752048655958,-1602.72,0.00020273,2]
[370505950,1752048655968,-460.0,0.00020273,2]
[370505951,1752048655977,-460.0,0.00020273,2]
[370505952,1752048655987,-460.0,0.00020273,2]
[370505953,1752048655996,-790.24,0.00020273,2]
[370505954,1752048656005,-460.0,0.00020273,2]
[370505955,1752048656014,-460.0,0.00020273,2]
[370505956,1752048656023,-2920.42,0.00020273,2]
[370505957,1752048656033,-460.0,0.00020273,2]
[370505958,1752048656042,-460.0,0.00020273,2]
[370505959,1752048656051,-460.0,0.00020273,2]
[370505960,1752048656061,-649.64,0.00020273,2]
[370505961,1752048656070,-460.0,0.00020273,2]
[370505962,1752048656080,-460.0,0.00020273,2]
[370505963,1752048656089,-460.0,0.00020273,2]
[370505964,1752048656098,-460.0,0.00020273,2]
[370505965,1752048656108,-460.0,0.00020273,2]
[370505966,1752048656117,-460.0,0.00020273,2]
[370505967,1752048656126,-460.0,0.00020273,2]
[370505968,1752048656135,-460.0,0.00020273,2]
[370505969,1752048656145,-460.0,0.00020273,2]
[370505970,1752048656154,-460.0,0.00020273,2]
[370505971,1752048656164,-257.70502127,0.00020276,2]
[370505972,1752048656174,-500.0,0.00020297,2]
[370505973,1752048656183,-168.056725,0.00020302,2]
[370505974,1752048656192,-500.0,0.00020316,2]
[370505975,1752048656202,-589.20165836,0.00020316,2]
[370505976,1752048656211,-500.0,0.00020316,2]
[370505977,1752048656220,-500.0,0.00020316,2]
[370505978,1752048656230,-500.0,0.00020316,2]
[370505979,1752048656239,-1000.0,0.00020321,2]
[370505980,1752048656249,-1000.0,0.00020321,2]
[370505981,1752048656258,-503.14913213,0.00020321,2]
[370505982,1752048656267,-1000.0,0.00020321,2]
[370505983,1752048656276,-1000.0,0.00020321,2]
[370505984,1752048656285,-1118.28268229,0.00020348,3]
[370505985,1752048656295,-168.056725,0.00020396,2]
[370505986,1752048656304,-364.48151979,0.00020471,2]
[370505987,1752048656314,-168.056725,0.0002049,2]
[370505988,1752048656323,-283.35163415,0.00020547,2]
[370505989,1752048656333,-460.0,0.00020547,2]
[370505990,1752048656342,-460.0,0.00020547,2]
[370505991,1752048656351,-460.0,0.00020547,2]
[370505992,1752048656361,-460.0,0.00020547,2]
[370505993,1752048656370,-460.0,0.00020547,2]
[370505994,1752048656379,-460.0,0.00020547,2]
[370505995,1752048656389,-460.0,0.00020547,2]
[370505996,1752048656399,-460.0,0.00020547,2]
[370505997,1752048656414,-460.0,0.00020547,2]
[370505998,1752048656423,-460.0,0.00020547,2]
[370505999,1752048656432,-460.0,0.00020547,2]
[370506000,1752048656442,-472.08,0.00020547,2]
[370506001,1752048656453,-460.0,0.00020547,2]
[370506002,1752048656463,-472.26780812,0.00020547,2]
[370506003,1752048656472,-460.0,0.00020547,2]
[370506004,1752048656483,-460.0,0.00020547,2]
[370506005,1752048656493,-460.0,0.00020547,2]
[370506006,1752048656505,-460.0,0.00020547,2]
[370506007,1752048656515,-503.05,0.00020547,2]
[370506008,1752048656524,-460.0,0.00020547,2]
[370506009,1752048656533,-460.0,0.00020547,2]
[370506010,1752048656543,-460.0,0.00020547,2]
[370506011,1752048656552,-460.0,0.00020547,2]
[370506012,1752048656561,-460.0,0.00020547,2]
[370506013,1752048656571,-460.0,0.00020547,2]
[370506014,1752048656580,-460.0,0.00020547,2]
[370506015,1752048656590,-460.0,0.00020547,2]
[370506016,1752048656600,-460.0,0.00020547,2]
[370506017,1752048656610,-460.0,0.00020547,2]
[370506018,1752048656619,-460.0,0.00020547,2]
[370506019,1752048656628,-460.0,0.00020547,2]
[370506020,1752048656638,-460.0,0.00020547,2]
[370506021,1752048656647,-460.0,0.00020547,2]
[370506022,1752048656657,-512.6,0.00020547,2]
[370506023,1752048656666,-574.22,0.00020547,2]
[370506024,1752048656675,-460.0,0.00020547,2]
[370506025,1752048656685,-460.0,0.00020547,2]
[370506026,1752048656695,-460.0,0.00020547,2]
[370506027,1752048656705,-460.0,0.00020547,2]
[370506028,1752048656715,-460.0,0.00020547,2]
[370506029,1752048656726,-556.7,0.00020547,2]
[370506030,1752048656735,-460.0,0.00020547,2]
[370506031,1752048656745,-460.0,0.00020547,2]
[370506032,1752048656754,-460.0,0.00020547,2]
[370506033,1752048656763,-419.36721333,0.00020547,2]
[370506034,1752048656773,-535.91546768,0.00020547,2]
[370506035,1752048656783,-460.0,0.00020547,2]
[370506036,1752048656793,-497.02704354,0.00020547,2]
[370506037,1752048656802,-460.0,0.00020547,2]
[370506038,1752048656811,-240.27,0.00020547,2]
[370506039,1752048656932,-460.0,0.00020547,2]
[370506040,1752048656942,-460.0,0.00020547,2]
[370506041,1752048656953,-460.0,0.00020547,2]
[370506042,1752048656963,-460.0,0.00020547,2]
[370506043,1752048656972,-809.51,0.00020547,2]
[370506044,1752048656981,-460.0,0.00020547,2]
[370506045,1752048656991,-460.0,0.00020547,2]
[370506046,1752048657000,-460.0,0.00020547,2]
[370506047,1752048657010,-460.0,0.00020547,2]
[370506048,1752048657019,-460.0,0.00020547,2]
[370506049,1752048657029,-460.0,0.00020547,2]
[370506050,1752048657038,-3416.35,0.00020547,2]
[370506051,1752048657047,-460.0,0.00020547,2]
[370506052,1752048657057,-460.0,0.00020547,2]
[370506053,1752048657067,-460.0,0.00020547,2]
[370506054,1752048657076,-460.0,0.00020547,2]
[370506055,1752048657086,-460.0,0.00020547,2]
[370506056,1752048657095,-631.17,0.00020547,2]
[370506057,1752048657105,-566.78,0.00020547,2]
[370506058,1752048657114,-460.0,0.00020547,2]
[370506059,1752048657123,-479.16,0.00020547,2]
[370506060,1752048657132,-460.0,0.00020547,2]
[370506061,1752048657142,-922.45,0.00020547,2]
[370506062,1752048657151,-460.0,0.00020547,2]
[370506063,1752048657161,-460.0,0.00020547,2]
[370506064,1752048657170,-460.0,0.00020547,2]
[370506065,1752048657180,-389.09419639,0.00020547,2]
[370506066,1752048657190,-460.0,0.00020547,2]
[370506067,1752048657200,-598.5,0.00020547,2]
[370506068,1752048657209,-460.0,0.00020547,2]
[370506069,1752048657218,-460.0,0.00020547,2]
[370506070,1752048657227,-460.0,0.00020547,2]
[370506071,1752048657237,-461.03,0.00020547,2]
[370506072,1752048657248,-460.0,0.00020547,2]
[370506073,1752048657257,-548.37,0.00020547,2]
[370506074,1752048657266,-1673.21,0.00020547,2]
[370506075,1752048657275,-856.19,0.00020547,2]
[370506076,1752048657285,-460.0,0.00020547,2]
[370506077,1752048657295,-575.07,0.00020547,2]
[370506078,1752048657304,-460.0,0.00020547,2]
[370506079,1752048657314,-499.04,0.00020547,2]
[370506080,1752048657323,-460.0,0.00020547,2]
[370506081,1752048657332,-1127.17,0.00020547,2]
[370506082,1752048657341,-1071.84,0.00020547,2]
[370506083,1752048657351,-460.0,0.00020547,2]
[370506084,1752048657360,-460.0,0.00020547,2]
[370506085,1752048657370,-460.0,0.00020547,2]
[370506086,1752048657379,-460.0,0.00020547,2]
[370506087,1752048657388,-500.0,0.00020547,2]
[370506088,1752048657397,-460.0,0.00020547,2]
[370506089,1752048657409,-618.77,0.00020547,2]
[370506090,1752048657419,-460.0,0.00020547,2]
[370506091,1752048657428,-460.0,0.00020547,2]
[370506092,1752048657438,-460.0,0.00020547,2]
[370506093,1752048657448,-460.0,0.00020547,2]
[370506094,1752048657457,-460.0,0.00020547,2]
[370506095,1752048657466,-1153.26,0.00020547,2]
[370506096,1752048657476,-460.0,0.00020547,2]
[370506097,1752048657485,-460.0,0.00020547,2]
[370506098,1752048657496,-2655.94,0.00020547,2]
[370506099,1752048657506,-460.0,0.00020547,2]
[370506100,1752048657516,-460.0,0.00020547,2]
[370506101,1752048657526,-460.0,0.00020547,2]
[370506102,1752048657536,-460.0,0.00020547,2]
[370506103,1752048657545,-460.0,0.00020547,2]
[370506104,1752048657555,-460.0,0.00020547,2]
[370506105,1752048657564,-460.0,0.00020547,2]
[370506106,1752048657574,-460.0,0.00020547,2]
[370506107,1752048657584,-1730.49,0.00020547,2]
[370506108,1752048657593,-460.0,0.00020547,2]
[370506109,1752048657602,-460.0,0.00020547,2]
[370506110,1752048657612,-896.8,0.00020547,2]
[370506111,1752048657621,-460.0,0.00020547,2]
[370506112,1752048657630,-460.0,0.00020547,2]
[370506113,1752048657639,-460.0,0.00020547,2]
[370506114,1752048657649,-481.05,0.00020547,2]
[370506115,1752048657658,-3708.31,0.00020547,2]
[370506116,1752048657667,-460.0,0.00020547,2]
[370506117,1752048657677,-460.0,0.00020547,2]
[370506118,1752048657686,-748.7,0.00020547,2]
[370506119,1752048657696,-460.0,0.00020547,2]
[370506120,1752048657705,-460.0,0.00020547,2]
[370506121,1752048657715,-460.0,0.00020547,2]
[370506122,1752048657724,-1686.18,0.00020547,2]
[370506123,1752048657734,-460.0,0.00020547,2]
[370506124,1752048657744,-485.41,0.00020547,2]
[370506125,1752048657753,-460.0,0.00020547,2]
[370506126,1752048657762,-460.0,0.00020547,2]
[370506127,1752048657773,-460.0,0.00020547,2]
[370506128,1752048657784,-460.0,0.00020547,2]
[370506129,1752048657794,-519.27,0.00020547,2]
[370506130,1752048657804,-2583.43,0.00020547,2]
[370506131,1752048657813,-460.0,0.00020547,2]
[370506132,1752048657823,-460.0,0.00020547,2]
[370506133,1752048657832,-460.0,0.00020547,2]
[370506134,1752048657841,-460.0,0.00020547,2]
[370506135,1752048657851,-460.0,0.00020547,2]
[370506136,1752048657861,-1602.72,0.00020547,2]
[370506137,1752048657870,-460.0,0.00020547,2]
[370506138,1752048657880,-460.0,0.00020547,2]
[370506139,1752048657889,-460.0,0.00020547,2]
[370506140,1752048657898,-790.24,0.00020547,2]
[370506141,1752048657908,-460.0,0.00020547,2]
[370506142,1752048657917,-466.6,0.00020547,2]
[370506143,1752048657926,-2920.42,0.00020547,2]
[370506144,1752048657936,-460.0,0.00020547,2]
[370506145,1752048657946,-460.0,0.00020547,2]
[370506146,1752048657955,-460.0,0.00020547,2]
[370506147,1752048657964,-649.64,0.00020547,2]
[370506148,1752048657975,-460.0,0.00020547,2]
[370506149,1752048657985,-460.0,0.00020547,2]
[370506150,1752048657995,-467.95227676,0.00020547,2]
[370506151,1752048658005,-471.86966868,0.00020547,2]
[370506152,1752048658014,-460.0,0.00020547,2]
[370506153,1752048658023,-460.0,0.00020547,2]
[370506154,1752048658032,-460.0,0.00020547,2]
[370506155,1752048658041,-862.15445716,0.00020563,2]
[370506156,1752048658051,-168.056725,0.00020583,2]
[370506157,1752048658060,-1118.28268229,0.0002059,3]
[370506158,1752048658069,-2749.32,0.000206,2]
[370506159,1752048658079,-151.0,0.000206,4]
[370506160,1752048658088,-168.056725,0.00020677,2]
[370506161,1752048658097,-173.9,0.00020688,4]
[370506162,1752048658106,-168.056725,0.0002077,2]
[370506163,1752048658115,-151.0,0.000208,4]
[370506164,1752048658124,-741.909,0.00020805,2]
[370506165,1752048658133,-2000.0,0.00020816,2]
[370506166,1752048658143,-1510.08387321,0.00020816,2]
[370506167,1752048658152,-2000.0,0.00020816,2]
[370506168,1752048658161,-2000.0,0.00020816,2]
[370506169,1752048658171,-3668.14,0.0002082,3]
[370506170,1752048658180,-460.0,0.00020821,2]
[370506171,1752048658190,-460.0,0.00020821,2]
[370506172,1752048658199,-460.0,0.00020821,2]
[370506173,1752048658208,-299.46708509,0.00020821,2]
[370506174,1752048658218,-460.0,0.00020821,2]
[370506175,1752048658227,-482.85790414,0.00020821,2]
[370506176,1752048658236,-460.0,0.00020821,2]
[370506177,1752048658245,-460.0,0.00020821,2]
[370506178,1752048658254,-472.08,0.00020821,2]
[370506179,1752048658263,-460.0,0.00020821,2]
[370506180,1752048658272,-161.4,0.00020821,2]
[370506181,1752048658282,-460.0,0.00020821,2]
[370506182,1752048658291,-460.0,0.00020821,2]
[370506183,1752048658300,-460.0,0.00020821,2]
[370506184,1752048658310,-460.0,0.00020821,2]
[370506185,1752048658319,-460.0,0.00020821,2]
[370506186,1752048658328,-510.19846125,0.00020821,2]
[370506187,1752048658337,-460.0,0.00020821,2]
[370506188,1752048658346,-493.24,0.00020821,2]
[370506189,1752048658356,-182.9,0.00020821,2]
[370506190,1752048658365,-460.0,0.00020821,2]
[370506191,1752048658375,-460.0,0.00020821,2]
[370506192,1752048658384,-563.69946723,0.00020821,2]
[370506193,1752048658393,-460.0,0.00020821,2]
[370506194,1752048658405,-460.0,0.00020821,2]
[370506195,1752048658415,-460.0,0.00020821,2]
[370506196,1752048658424,-512.6,0.00020821,2]
[370506197,1752048658434,-574.22,0.00020821,2]
[370506198,1752048658443,-460.0,0.00020821,2]
[370506199,1752048658454,-460.0,0.00020821,2]
[370506200,1752048658463,-460.0,0.00020821,2]
[370506201,1752048658473,-460.0,0.00020821,2]
[370506202,1752048658484,-556.7,0.00020821,2]
[370506203,1752048658496,-460.0,0.00020821,2]
[370506204,1752048658505,-460.0,0.00020821,2]
[370506205,1752048658515,-460.0,0.00020821,2]
[370506206,1752048658524,-460.0,0.00020821,2]
[370506207,1752048658533,-460.0,0.00020821,2]
[370506208,1752048658544,-809.51,0.00020821,2]
[370506209,1752048658553,-484.93,0.00020821,2]
[370506210,1752048658562,-460.0,0.00020821,2]
[370506211,1752048658572,-460.0,0.00020821,2]
[370506212,1752048658582,-460.0,0.00020821,2]
[370506213,1752048658592,-3416.35,0.00020821,2]
[370506214,1752048658601,-201.15,0.00020821,2]
[370506215,1752048658610,-460.0,0.00020821,2]
[370506216,1752048658620,-460.0,0.00020821,2]
[370506217,1752048658629,-460.0,0.00020821,2]
[370506218,1752048658638,-631.17,0.00020821,2]
[370506219,1752048658647,-566.78,0.00020821,2]
[370506220,1752048658657,-460.0,0.00020821,2]
[370506221,1752048658667,-922.45,0.00020821,2]
[370506222,1752048658675,-460.0,0.00020821,2]
[370506223,1752048658685,-460.0,0.00020821,2]
[370506224,1752048658694,-460.0,0.00020821,2]
[370506225,1752048658704,-460.0,0.00020821,2]
[370506226,1752048658713,-460.0,0.00020821,2]
[370506227,1752048658722,-460.0,0.00020821,2]
[370506228,1752048658731,-461.03,0.00020821,2]
[370506229,1752048658740,-460.0,0.00020821,2]
[370506230,1752048658750,-548.37,0.00020821,2]
[370506231,1752048658759,-1673.21,0.00020821,2]
[370506232,1752048658768,-856.19,0.00020821,2]
[370506233,1752048658777,-460.0,0.00020821,2]
[370506234,1752048658786,-575.07,0.00020821,2]
[370506235,1752048658795,-460.0,0.00020821,2]
[370506236,1752048658804,-460.0,0.00020821,2]
[370506237,1752048658814,-1127.17,0.00020821,2]
[370506238,1752048658823,-1071.84,0.00020821,2]
[370506239,1752048658831,-494.63730287,0.00020821,2]
[370506240,1752048658840,-460.0,0.00020821,2]
[370506241,1752048658849,-460.0,0.00020821,2]
[370506242,1752048658858,-618.77,0.00020821,2]
[370506243,1752048658867,-460.0,0.00020821,2]
[370506244,1752048658876,-460.0,0.00020821,2]
[370506245,1752048658886,-460.0,0.00020821,2]
[370506246,1752048658895,-460.0,0.00020821,2]
[370506247,1752048658904,-460.0,0.00020821,2]
[370506248,1752048658914,-1153.26,0.00020821,2]
[370506249,1752048658924,-460.0,0.00020821,2]
[370506250,1752048658933,-460.0,0.00020821,2]
[370506251,1752048658942,-2655.94,0.00020821,2]
[370506252,1752048658952,-460.0,0.00020821,2]
[370506253,1752048658962,-460.0,0.00020821,2]
[370506254,1752048658971,-460.0,0.00020821,2]
[370506255,1752048658980,-460.0,0.00020821,2]
[370506256,1752048658990,-460.0,0.00020821,2]
[370506257,1752048658999,-414.12,0.00020821,2]
[370506258,1752048659008,-460.0,0.00020821,2]
[370506259,1752048659017,-460.0,0.00020821,2]
[370506260,1752048659027,-1730.49,0.00020821,2]
[370506261,1752048659037,-460.0,0.00020821,2]
[370506262,1752048659046,-460.0,0.00020821,2]
[370506263,1752048659057,-896.8,0.00020821,2]
[370506264,1752048659067,-460.0,0.00020821,2]
[370506265,1752048659077,-589.25962257,0.00020821,2]
[370506266,1752048659086,-460.0,0.00020821,2]
[370506267,1752048659096,-481.05,0.00020821,2]
[370506268,1752048659105,-3708.31,0.00020821,2]
[370506269,1752048659114,-460.0,0.00020821,2]
[370506270,1752048659124,-468.77464405,0.00020821,2]
[370506271,1752048659133,-748.7,0.00020821,2]
[370506272,1752048659143,-460.0,0.00020821,2]
[370506273,1752048659152,-460.0,0.00020821,2]
[370506274,1752048659163,-460.0,0.00020821,2]
[370506275,1752048659172,-1686.18,0.00020821,2]
[370506276,1752048659184,-278.0669389,0.00020821,2]
[370506277,1752048659194,-460.0,0.00020821,2]
[370506278,1752048659203,-460.0,0.00020821,2]
[370506279,1752048659212,-460.0,0.00020821,2]
[370506280,1752048659221,-472.64,0.00020821,2]
[370506281,1752048659230,-2583.43,0.00020821,2]
[370506282,1752048659239,-460.0,0.00020821,2]
[370506283,1752048659248,-460.0,0.00020821,2]
[370506284,1752048659257,-460.0,0.00020821,2]
[370506285,1752048659266,-1602.72,0.00020821,2]
[370506286,1752048659277,-460.0,0.00020821,2]
[370506287,1752048659288,-460.0,0.00020821,2]
[370506288,1752048659297,-790.24,0.00020821,2]
[370506289,1752048659307,-460.0,0.00020821,2]
[370506290,1752048659317,-2920.42,0.00020821,2]